[Event "AUT-ch 2018"]
[Site "Vienna"]
[Date "2018.07.29"]
[Round "9"]
[White "Zojer, Stefan"]
[Black "Trippold, Denise"]
[Result "1-0"]
[ECO "A45"]
[WhiteElo "2108"]
[BlackElo "2138"]
[Annotator "NA"]
[PlyCount "135"]
[EventDate "2018.07.22"]
[EventType "swiss"]
[EventCountry "AUT"]
[SourceTitle "playchess.com"]
[Source "ChessBase"]
[SourceQuality "1"]
[TimeControl "40/5400+30:1800+30"]

1. d4 {[%emt 0:00:00]} Nf6 {[%emt 0:00:05]} 2. Bg5 {[%emt 0:00:00]} d5 {[%emt 0:00:18]} 3. Bxf6 {[%emt 0:00:38]} gxf6 {[%emt 0:00:07]} 4. c4 {[%emt 0:01:14]} dxc4 {[%emt 0:01:46]} 5. e3 {[%emt 0:03:38]} c5 {[%emt 0:00:16]} 6. d5 {[%emt 0:02:55]} Qb6 {[%emt 0:08:07]} 7. Qc2 {[%emt 0:04:33]} Bg7 {[%emt 0:02:45]} 8. Bxc4 {[%emt 0:06:54]} O-O {[%emt 0:11:46]} 9. Nc3 {[%emt 0:04:31]} Qb4 {[%emt 0:06:09]} 10. Bd3 {[%emt 0:02:17]} f5 {[%emt 0:01:42]} 11. Nge2 {[%emt 0:02:20]} c4 {[%emt 0:12:14]} 12. Bxf5 {[%emt 0:01:31]} Bxf5 {[%emt 0:00:01]} 13. Qxf5 {[%emt 0:00:17]} Qxb2 {[%emt 0:00:15]} 14. Rc1 {[%emt 0:03:45]} Na6 {[%emt 0:09:03]} 15. O-O {[%emt 0:02:03]} Nc5 {[%emt 0:00:20]} 16. Rb1 {[%emt 0:07:27]} Qa3 {[%emt 0:00:21]} 17. Ne4 {[%emt 0:03:44]} Nxe4 {[%emt 0:06:18]} 18. Qxe4 {[%emt 0:00:11]} c3 {[%emt 0:00:56]} 19. Ng3 {[%emt 0:02:55]} Rac8 {[%emt 0:04:24]} 20. Nh5 {[%emt 0:09:54]} c2 {[%emt 0:16:29]} 21. Rbc1 {[%emt 0:01:41]} Qc3 {[%emt 0:01:30]} 22. Nxg7 {[%emt 0:04:51]} Kxg7 {[%emt 0:01:26]} 23. Qxe7 {[%emt 0:01:39]} b5 {[%emt 0:10:04]} 24. e4 {[%emt 0:02:16]} Rfe8 {[%emt 0:05:00]} 25. Qg5+ {[%emt 0:02:19]} Kh8 {[%emt 0:00:01]} 26. d6 {[%emt 0:05:01]} Rg8 {[%emt 0:00:00]} 27. Qf5 {[%emt 0:03:15]} Qd4 {[%emt 0:01:59]} 28. e5 {[%emt 0:04:16]} Qd5 {[%emt 0:00:01]} 29. g3 {[%emt 0:01:24]} Qe6 {[%emt 0:00:54]} 30. Qxe6 {[%emt 0:04:10]} fxe6 {[%emt 0:00:01]} 31. f4 {[%emt 0:00:13]} Rc5 {[%emt 0:00:21]} 32. Rf2 {[%emt 0:00:30]} Rgc8 {[%emt 0:00:04]} 33. f5 {[%emt 0:03:57]} Rxe5 {[%emt 0:00:59]} 34. Rcxc2 {[%emt 0:01:25]} Rd8 {[%emt 0:01:03]} 35. Rc7 {[%emt 0:00:50]} exf5 {[%emt 0:00:31]} 36. Rd2 {[%emt 0:00:49]} Ree8 {[%emt 0:00:39]} 37. Rxa7 {[%emt 0:00:23]} Re6 {[%emt 0:00:30]} 38. d7 {[%emt 0:02:31]} Kg7 {[%emt 0:00:22]} 39. Rd5 {[%emt 0:01:09]} Re7 {[%emt 0:00:39]} 40. Rxb5 {[%emt 0:00:31]} Rdxd7 {[%emt 0:30:13]} 41. Rxd7 {[%emt 0:30:52]} Rxd7 {[%emt 0:00:00]} 42. Rxf5 {[%emt 0:00:00]} Kg6 {[%emt 0:00:00]} 43. Rf2 {[%emt 0:00:00]} Rd3 {[%emt 0:00:00]} 44. a4 {[%emt 0:00:00]} Ra3 {[%emt 0:00:00]} 45. Rf4 {[%emt 0:00:00]} Ra2 {[%emt 0:00:00]} 46. Rh4 {[%emt 0:00:00]} h6 {[%emt 0:00:00]} 47. Kf1 {[%emt 0:00:00]} Kg5 {[%emt 0:00:00]} 48. Ke1 {[%emt 0:00:00]} Kg6 {[%emt 0:00:00]} 49. Kd1 {[%emt 0:00:00]} Rg2 {[%emt 0:00:00]} 50. Kc1 {[%emt 0:00:00]} Re2 {[%emt 0:00:00]} 51. Kb1 {[%emt 0:00:00]} Re5 {[%emt 0:00:00]} 52. Kb2 {[%emt 0:00:00]} Re3 {[%emt 0:00:00]} 53. a5 {[%emt 0:00:00]} Re2+ {[%emt 0:00:00]} 54. Kb3 {[%emt 0:00:00]} Re3+ {[%emt 0:00:00]} 55. Kb4 {[%emt 0:00:00]} Re6 {[%emt 0:00:00]} 56. Kb5 {[%emt 0:00:00]} Re5+ {[%emt 0:00:00]} 57. Kb6 {[%emt 0:00:00]} Re6+ {[%emt 0:00:00]} 58. Kc7 {[%emt 0:00:00]} Rf6 {[%emt 0:00:00]} 59. Ra4 {[%emt 0:00:00]} Rf7+ {[%emt 0:00:00]} 60. Kd6 {[%emt 0:00:00]} Rf6+ {[%emt 0:00:00]} 61. Ke5 {[%emt 0:00:00]} Ra6 {[%emt 0:00:00]} 62. Kd5 {[%emt 0:00:00]} h5 {[%emt 0:00:00]} 63. Kc5 {[%emt 0:00:00]} Kg5 {[%emt 0:04:08]} 64. Kb5 {[%emt 0:00:00]} Rf6 {[%emt 0:00:04]} 65. a6 {[%emt 0:00:00]} Rf5+ {[%emt 0:00:05]} 66. Kc6 {[%emt 0:00:00]} Rf6+ {[%emt 0:00:19]} 67. Kd5 {[%emt 0:00:00]} Rf5+ {[%emt 0:00:34]} 68. Ke4 {[%emt 0:00:00]} 1-0

[Event "AUT-ch 2018"]
[Site "Vienna"]
[Date "2018.07.29"]
[Round "9"]
[White "Schloffer, Jasmin-Denise"]
[Black "Sadilek, Maximilian"]
[Result "1/2-1/2"]
[ECO "A40"]
[WhiteElo "2102"]
[BlackElo "2224"]
[Annotator "NA"]
[PlyCount "120"]
[EventDate "2018.07.22"]
[EventType "swiss"]
[EventCountry "AUT"]
[SourceTitle "playchess.com"]
[Source "ChessBase"]
[SourceQuality "1"]
[TimeControl "40/5400+30:1800+30"]

1. d4 {[%emt 0:00:00]} g6 {[%emt 0:00:50]} 2. c4 {[%emt 0:00:00]} Bg7 {[%emt 0:00:03]} 3. Nc3 {[%emt 0:00:00]} c5 {[%emt 0:00:28]} 4. d5 {[%emt 0:00:00]} d6 {[%emt 0:00:05]} 5. e4 {[%emt 0:00:22]} a6 {[%emt 0:00:15]} 6. Nf3 {[%emt 0:05:31]} e6 {[%emt 0:01:25]} 7. Bd3 {[%emt 0:03:54]} Ne7 {[%emt 0:00:15]} 8. O-O {[%emt 0:02:44]} O-O {[%emt 0:01:00]} 9. a4 {[%emt 0:03:59]} h6 {[%emt 0:05:22]} 10. dxe6 {[%emt 0:06:15]} Bxe6 {[%emt 0:02:12]} 11. Nd5 {[%emt 0:02:55]} Nxd5 {[%emt 0:05:06]} 12. exd5 {[%emt 0:03:25]} Bg4 {[%emt 0:00:27]} 13. h3 {[%emt 0:00:18]} Bxf3 {[%emt 0:00:11]} 14. Qxf3 {[%emt 0:00:09]} Nd7 {[%emt 0:00:08]} 15. Rb1 {[%emt 0:07:45]} Ne5 {[%emt 0:11:30]} 16. Qe2 {[%emt 0:01:12]} Re8 {[%emt 0:01:04]} 17. Qc2 {[%emt 0:00:32]} Rc8 {[%emt 0:02:33]} 18. b3 {[%emt 0:03:00]} Qh4 {[%emt 0:01:58]} 19. Bb2 {[%emt 0:04:05]} Rc7 {[%emt 0:11:06]} 20. f4 {[%emt 0:08:59]} Nxd3 {[%emt 0:01:21]} 21. Qxd3 {[%emt 0:00:06]} Rce7 {[%emt 0:14:19]} 22. Bxg7 {[%emt 0:02:39]} Re3 {[%emt 0:00:48]} 23. Qd1 {[%emt 0:02:49]} Kxg7 {[%emt 0:10:22]} 24. Qg4 {[%emt 0:10:23]} Qxg4 {[%emt 0:00:50]} 25. hxg4 {[%emt 0:00:05]} a5 {[%emt 0:00:05]} 26. Rf3 {[%emt 0:00:30]} Re2 {[%emt 0:04:27]} 27. Rbf1 {[%emt 0:02:24]} R8e4 {[%emt 0:06:27]} 28. R1f2 {[%emt 0:01:59]} Rxf2 {[%emt 0:03:28]} 29. Kxf2 {[%emt 0:00:06]} Kf6 {[%emt 0:04:38]} 30. g3 {[%emt 0:02:49]} h5 {[%emt 0:06:46]} 31. gxh5 {[%emt 0:06:52]} gxh5 {[%emt 0:00:05]} 32. Rd3 {[%emt 0:01:02]} Kf5 {[%emt 0:01:25]} 33. Rd1 {[%emt 0:01:37]} h4 {[%emt 0:01:12]} 34. gxh4 {[%emt 0:00:39]} Rxf4+ {[%emt 0:03:04]} 35. Kg3 {[%emt 0:00:08]} Rg4+ {[%emt 0:00:12]} 36. Kh3 {[%emt 0:00:05]} Rf4 {[%emt 0:01:15]} 37. Kg3 {[%emt 0:00:05]} b6 {[%emt 0:00:37]} 38. Re1 {[%emt 0:01:21]} Rg4+ {[%emt 0:00:54]} 39. Kh3 {[%emt 0:00:07]} Rd4 {[%emt 0:00:18]} 40. Rf1+ {[%emt 0:01:30]} Rf4 {[%emt 0:30:48]} 41. Rb1 {[%emt 0:35:42]} Rf3+ {[%emt 0:00:00]} 42. Kg2 {[%emt 0:00:00]} Kg4 {[%emt 0:00:00]} 43. h5 {[%emt 0:00:00]} Rg3+ {[%emt 0:00:00]} 44. Kf2 {[%emt 0:00:00]} Rh3 {[%emt 0:00:00]} 45. Rg1+ {[%emt 0:00:00]} Kxh5 {[%emt 0:00:00]} 46. Rg7 {[%emt 0:00:00]} Rxb3 {[%emt 0:00:00]} 47. Rxf7 {[%emt 0:00:00]} Rb4 {[%emt 0:00:00]} 48. Rb7 {[%emt 0:00:00]} Rxa4 {[%emt 0:00:00]} 49. Rxb6 {[%emt 0:00:00]} Rxc4 {[%emt 0:00:00]} 50. Rxd6 {[%emt 0:00:00]} Rd4 {[%emt 0:00:00]} 51. Ra6 {[%emt 0:00:00]} Rxd5 {[%emt 0:00:00]} 52. Rxa5 {[%emt 0:00:00]} Re5 {[%emt 0:00:00]} 53. Kf3 {[%emt 0:00:00]} Kg5 {[%emt 0:00:00]} 54. Ra8 {[%emt 0:00:00]} Kf6 {[%emt 0:00:00]} 55. Kf4 {[%emt 0:00:00]} Rh5 {[%emt 0:00:00]} 56. Ra6+ {[%emt 0:00:00]} Ke7 {[%emt 0:00:00]} 57. Ke4 {[%emt 0:00:00]} Kd7 {[%emt 0:00:00]} 58. Kd3 {[%emt 0:00:00]} Rh4 {[%emt 0:00:00]} 59. Kc3 {[%emt 0:00:00]} Kc7 {[%emt 0:00:00]} 60. Rg6 {[%emt 0:00:00]} c4 {[%emt 0:00:00]} 1/2-1/2

[Event "AUT-ch 2018"]
[Site "Vienna"]
[Date "2018.07.29"]
[Round "9"]
[White "Ehs, Dominik"]
[Black "Gelbenegger, Patrick"]
[Result "1/2-1/2"]
[ECO "C01"]
[WhiteElo "2097"]
[BlackElo "2260"]
[Annotator "NA"]
[PlyCount "59"]
[EventDate "2018.07.22"]
[EventType "swiss"]
[EventCountry "AUT"]
[SourceTitle "playchess.com"]
[Source "ChessBase"]
[SourceQuality "1"]
[TimeControl "40/5400+30:1800+30"]

1. e4 {[%emt 0:00:00]} e6 {[%emt 0:00:06]} 2. d4 {[%emt 0:00:00]} d5 {[%emt 0:00:04]} 3. exd5 {[%emt 0:00:00]} exd5 {[%emt 0:00:05]} 4. Nf3 {[%emt 0:00:00]} Bf5 {[%emt 0:00:08]} 5. Bd3 {[%emt 0:00:00]} Bxd3 {[%emt 0:00:05]} 6. Qxd3 {[%emt 0:00:06]} Nf6 {[%emt 0:00:05]} 7. Bf4 {[%emt 0:00:07]} Bd6 {[%emt 0:00:05]} 8. Bxd6 {[%emt 0:00:07]} Qxd6 {[%emt 0:00:05]} 9. O-O {[%emt 0:00:09]} O-O {[%emt 0:00:04]} 10. Nbd2 {[%emt 0:02:52]} Nbd7 {[%emt 0:03:31]} 11. c3 {[%emt 0:08:28]} c6 {[%emt 0:03:21]} 12. Rfe1 {[%emt 0:02:49]} Rfe8 {[%emt 0:03:51]} 13. Rxe8+ {[%emt 0:05:35]} Rxe8 {[%emt 0:06:59]} 14. Re1 {[%emt 0:00:08]} Rxe1+ {[%emt 0:00:19]} 15. Nxe1 {[%emt 0:00:05]} Qe7 {[%emt 0:00:31]} 16. Kf1 {[%emt 0:06:20]} Ne4 {[%emt 0:02:49]} 17. Nef3 {[%emt 0:01:49]} Nxd2+ {[%emt 0:01:49]} 18. Nxd2 {[%emt 0:03:12]} Nf6 {[%emt 0:01:03]} 19. Qe2 {[%emt 0:01:04]} Kf8 {[%emt 0:00:21]} 20. Qxe7+ {[%emt 0:00:51]} Kxe7 {[%emt 0:00:13]} 21. Ke2 {[%emt 0:01:18]} Ne4 {[%emt 0:02:12]} 22. f3 {[%emt 0:06:15]} Nxd2 {[%emt 0:04:19]} 23. Kxd2 {[%emt 0:00:05]} f6 {[%emt 0:00:08]} 24. Ke3 {[%emt 0:00:48]} Ke6 {[%emt 0:00:11]} 25. f4 {[%emt 0:00:12]} f5 {[%emt 0:00:08]} 26. g3 {[%emt 0:00:12]} g6 {[%emt 0:00:06]} 27. h4 {[%emt 0:00:05]} h5 {[%emt 0:00:30]} 28. Kd3 {[%emt 0:00:09]} b5 {[%emt 0:00:42]} 29. b4 {[%emt 0:00:07]} Kd6 {[%emt 0:00:12]} 30. a3 {[%emt 0:00:07] Ke5 Ke4+} 1/2-1/2

[Event "AUT-ch 2018"]
[Site "Vienna"]
[Date "2018.07.29"]
[Round "9"]
[White "Jedinger, Andreas"]
[Black "Neubauer, Martin"]
[Result "0-1"]
[ECO "C18"]
[WhiteElo "2090"]
[BlackElo "2439"]
[Annotator "NA"]
[PlyCount "84"]
[EventDate "2018.07.22"]
[EventType "swiss"]
[EventCountry "AUT"]
[SourceTitle "playchess.com"]
[Source "ChessBase"]
[SourceQuality "1"]
[TimeControl "40/5400+30:1800+30"]

1. e4 {[%emt 0:00:00]} e6 {[%emt 0:00:06]} 2. d4 {[%emt 0:00:00]} d5 {[%emt 0:00:01]} 3. Nc3 {[%emt 0:00:02]} Bb4 {[%emt 0:00:05]} 4. e5 {[%emt 0:00:10]} c5 {[%emt 0:00:05]} 5. a3 {[%emt 0:00:03]} Bxc3+ {[%emt 0:00:06]} 6. bxc3 {[%emt 0:00:03]} Ne7 {[%emt 0:00:06]} 7. Qg4 {[%emt 0:00:05]} Nf5 {[%emt 0:00:16]} 8. Bd3 {[%emt 0:03:02]} h5 {[%emt 0:00:08]} 9. Qf4 {[%emt 0:02:03]} Qh4 {[%emt 0:00:08]} 10. Ne2 {[%emt 0:05:48]} Qxf4 {[%emt 0:00:17]} 11. Nxf4 {[%emt 0:00:12]} Ne7 {[%emt 0:00:05]} 12. dxc5 {[%emt 0:09:41]} Nbc6 {[%emt 0:03:55]} 13. c4 {[%emt 0:02:01]} Nxe5 {[%emt 0:34:30]} 14. cxd5 {[%emt 0:00:36]} Nxd3+ {[%emt 0:06:12]} 15. cxd3 {[%emt 0:00:24]} Nxd5 {[%emt 0:02:28]} 16. Nxd5 {[%emt 0:00:30]} exd5 {[%emt 0:00:01]} 17. Rb1 {[%emt 0:01:10]} Kd7 {[%emt 0:01:17]} 18. Bf4 {[%emt 0:01:30]} Kc6 {[%emt 0:01:20]} 19. Kd2 {[%emt 0:01:47]} Re8 {[%emt 0:02:26]} 20. Rb4 {[%emt 0:02:08]} Re6 {[%emt 0:21:02]} 21. Rhb1 {[%emt 0:03:18]} Kd7 {[%emt 0:01:23]} 22. Rxb7+ {[%emt 0:07:44]} Bxb7 {[%emt 0:00:22]} 23. Rxb7+ {[%emt 0:00:06]} Kc6 {[%emt 0:06:43]} 24. Rc7+ {[%emt 0:00:58]} Kb5 {[%emt 0:00:09]} 25. Bd6 {[%emt 0:01:04]} d4 {[%emt 0:04:07]} 26. Rb7+ {[%emt 0:04:18]} Ka4 {[%emt 0:07:37]} 27. Rb4+ {[%emt 0:00:25]} Kxa3 {[%emt 0:00:02]} 28. Rxd4 {[%emt 0:00:05]} Kb3 {[%emt 0:01:14]} 29. c6 {[%emt 0:04:31]} a5 {[%emt 0:00:13]} 30. c7 {[%emt 0:00:42]} Rae8 {[%emt 0:00:47]} 31. Re4 {[%emt 0:03:07]} Rxe4 {[%emt 0:00:04]} 32. dxe4 {[%emt 0:00:33]} a4 {[%emt 0:00:27]} 33. Kd3 {[%emt 0:05:40]} a3 {[%emt 0:00:15]} 34. Be5 {[%emt 0:00:09]} f6 {[%emt 0:02:25]} 35. Bd4 {[%emt 0:00:09]} a2 {[%emt 0:00:18]} 36. e5 {[%emt 0:00:04]} fxe5 {[%emt 0:00:13]} 37. Bxe5 {[%emt 0:00:06]} g6 {[%emt 0:02:35]} 38. h4 {[%emt 0:00:14]} Rc8 {[%emt 0:00:26]} 39. Ke4 {[%emt 0:00:20]} Rxc7 {[%emt 0:00:06]} 40. Bxc7 {[%emt 0:00:04]} a1=Q {[%emt 0:30:10]} 41. Be5 {[%emt 0:30:24]} Qb1+ {[%emt 0:00:07]} 42. Ke3 {[%emt 0:00:18]} Qe1+ 0-1

[Event "AUT-ch 2018"]
[Site "Vienna"]
[Date "2018.07.29"]
[Round "9"]
[White "Pernerstorfer, Johannes"]
[Black "Kersten, Julian"]
[Result "0-1"]
[ECO "C01"]
[WhiteElo "2066"]
[BlackElo "1979"]
[Annotator "NA"]
[PlyCount "56"]
[EventDate "2018.07.22"]
[EventType "swiss"]
[EventCountry "AUT"]
[SourceTitle "playchess.com"]
[Source "ChessBase"]
[SourceQuality "1"]
[TimeControl "40/5400+30:1800+30"]

1. e4 {[%emt 0:00:00]} e6 {[%emt 0:00:05]} 2. d4 {[%emt 0:00:00]} d5 {[%emt 0:00:05]} 3. exd5 {[%emt 0:00:00]} exd5 {[%emt 0:00:16]} 4. Nf3 {[%emt 0:00:05]} Bd6 {[%emt 0:00:17]} 5. Bd3 {[%emt 0:00:23]} Ne7 {[%emt 0:00:36]} 6. c3 {[%emt 0:01:11]} Bg4 {[%emt 0:01:46]} 7. Be3 {[%emt 0:00:45]} Nbc6 {[%emt 0:00:37]} 8. Nbd2 {[%emt 0:00:12]} Qd7 {[%emt 0:00:30]} 9. Qc2 {[%emt 0:01:02]} O-O-O {[%emt 0:00:55]} 10. O-O-O {[%emt 0:03:11]} f5 {[%emt 0:05:31]} 11. g3 {[%emt 0:00:48]} Rdf8 {[%emt 0:03:49]} 12. h3 {[%emt 0:05:21]} Bh5 {[%emt 0:05:47]} 13. Rde1 {[%emt 0:02:34]} f4 {[%emt 0:04:36]} 14. gxf4 {[%emt 0:00:15]} Bxf4 {[%emt 0:00:11]} 15. Ne5 {[%emt 0:04:17]} Nxe5 {[%emt 0:03:44]} 16. dxe5 {[%emt 0:00:11]} Bxe3 {[%emt 0:01:26]} 17. fxe3 {[%emt 0:00:33]} Rf2 {[%emt 0:12:01]} 18. Rhf1 {[%emt 0:01:06]} Rhf8 {[%emt 0:01:34]} 19. c4 {[%emt 0:03:52]} g6 {[%emt 0:06:37]} 20. Rxf2 {[%emt 0:04:05]} Rxf2 {[%emt 0:00:02]} 21. Qb3 {[%emt 0:03:32]} dxc4 {[%emt 0:04:33]} 22. Nxc4 {[%emt 0:00:21]} b6 {[%emt 0:03:29]} 23. Kb1 {[%emt 0:01:25]} Qxh3 {[%emt 0:06:36]} 24. Rc1 {[%emt 0:03:13]} Kb8 {[%emt 0:10:15]} 25. Qb5 {[%emt 0:05:54]} Rf8 {[%emt 0:02:53]} 26. Qb4 {[%emt 0:03:33]} Qd7 {[%emt 0:01:09]} 27. Na5 {[%emt 0:00:38]} Qxd3+ {[%emt 0:00:23]} 28. Ka1 {[%emt 0:00:06]} Rf1 {[%emt 0:03:14]} 0-1

[Event "AUT-ch 2018"]
[Site "Vienna"]
[Date "2018.07.29"]
[Round "9"]
[White "Gutmann, Alois"]
[Black "Hofegger, Jakob"]
[Result "0-1"]
[ECO "C00"]
[WhiteElo "2062"]
[BlackElo "2147"]
[Annotator "NA"]
[PlyCount "74"]
[EventDate "2018.07.22"]
[EventType "swiss"]
[EventCountry "AUT"]
[SourceTitle "playchess.com"]
[Source "ChessBase"]
[SourceQuality "1"]
[TimeControl "40/5400+30:1800+30"]

1. e4 {[%emt 0:00:00]} e6 {[%emt 0:00:06]} 2. b3 {[%emt 0:00:00]} c5 {[%emt 0:01:06]} 3. Bb2 {[%emt 0:01:08]} Nf6 {[%emt 0:00:40]} 4. Nc3 {[%emt 0:02:37]} d6 {[%emt 0:03:20]} 5. f4 {[%emt 0:02:04]} Be7 {[%emt 0:00:46]} 6. Bb5+ {[%emt 0:03:20]} Bd7 {[%emt 0:01:49]} 7. Qe2 {[%emt 0:06:30]} a6 {[%emt 0:04:17]} 8. Bxd7+ {[%emt 0:01:37]} Qxd7 {[%emt 0:00:06]} 9. e5 {[%emt 0:21:44]} dxe5 {[%emt 0:00:44]} 10. fxe5 {[%emt 0:00:11]} Nd5 {[%emt 0:00:13]} 11. Qg4 {[%emt 0:00:32]} g6 {[%emt 0:10:00]} 12. Ne4 {[%emt 0:01:43]} Nc6 {[%emt 0:03:20]} 13. O-O-O {[%emt 0:04:07]} O-O-O {[%emt 0:04:48]} 14. Nf3 {[%emt 0:04:34]} Kb8 {[%emt 0:07:00]} 15. h4 {[%emt 0:02:32]} h5 {[%emt 0:01:53]} 16. Qg3 {[%emt 0:00:35]} c4 {[%emt 0:12:53]} 17. bxc4 {[%emt 0:11:30]} Ndb4 {[%emt 0:03:45]} 18. Nd6 {[%emt 0:01:46]} Nxa2+ {[%emt 0:19:19]} 19. Kb1 {[%emt 0:00:10]} Ncb4 {[%emt 0:00:03]} 20. c3 {[%emt 0:11:14]} Qa4 {[%emt 0:04:46]} 21. cxb4 {[%emt 0:02:00]} Nxb4 {[%emt 0:00:07]} 22. Nd4 {[%emt 0:00:53]} Qa2+ {[%emt 0:01:10]} 23. Kc1 {[%emt 0:00:03]} Rxd6 {[%emt 0:10:52]} 24. exd6 {[%emt 0:03:16]} Qxc4+ {[%emt 0:00:05]} 25. Bc3 {[%emt 0:01:57]} Bf6 {[%emt 0:01:54]} 26. d7+ {[%emt 0:01:16]} Ka8 {[%emt 0:00:37]} 27. Qd6 {[%emt 0:01:58]} Nd5 {[%emt 0:04:10]} 28. Rh3 {[%emt 0:10:00]} Be7 {[%emt 0:01:01]} 29. Qe5 {[%emt 0:01:37]} Rd8 {[%emt 0:00:34]} 30. Kb2 {[%emt 0:02:50]} Nb6 {[%emt 0:01:29]} 31. Qa5 {[%emt 0:00:31]} Na4+ {[%emt 0:02:03]} 32. Kb1 {[%emt 0:00:19]} Rxd7 {[%emt 0:00:28]} 33. Re1 {[%emt 0:01:14]} Rd5 {[%emt 0:00:23]} 34. d3 {[%emt 0:00:30]} Nxc3+ {[%emt 0:00:11]} 35. Kc2 {[%emt 0:00:35]} Qxd4 {[%emt 0:00:17]} 36. Qc7 {[%emt 0:00:28]} Rc5 {[%emt 0:00:27]} 37. Qxe7 {[%emt 0:00:14]} Nd5+ {[%emt 0:00:10]} 0-1

[Event "AUT-ch 2018"]
[Site "Vienna"]
[Date "2018.07.29"]
[Round "9"]
[White "Thoma, Wilhelm Jun"]
[Black "Ebner, Johann"]
[Result "1/2-1/2"]
[ECO "A17"]
[WhiteElo "2007"]
[BlackElo "2079"]
[Annotator "NA"]
[PlyCount "64"]
[EventDate "2018.07.22"]
[EventType "swiss"]
[EventCountry "AUT"]
[SourceTitle "playchess.com"]
[Source "ChessBase"]
[SourceQuality "1"]
[TimeControl "40/5400+30:1800+30"]

1. Nf3 {[%emt 0:00:00]} Nf6 {[%emt 0:00:07]} 2. c4 {[%emt 0:00:00]} e6 {[%emt 0:00:53]} 3. Nc3 {[%emt 0:00:00]} Bb4 {[%emt 0:00:08]} 4. Qc2 {[%emt 0:00:15]} O-O {[%emt 0:00:10]} 5. a3 {[%emt 0:00:07]} Bxc3 {[%emt 0:05:46]} 6. Qxc3 {[%emt 0:00:32]} c5 {[%emt 0:09:18]} 7. g3 {[%emt 0:02:07]} b6 {[%emt 0:00:21]} 8. Bg2 {[%emt 0:00:12]} Bb7 {[%emt 0:00:09]} 9. O-O {[%emt 0:00:31]} d6 10. d4 {[%emt 0:11:33]} cxd4 {[%emt 0:13:30]} 11. Qxd4 {[%emt 0:02:45]} Nc6 {[%emt 0:05:20]} 12. Qh4 {[%emt 0:03:51]} Ne7 {[%emt 0:02:01]} 13. Bg5 {[%emt 0:02:51]} Ng6 {[%emt 0:06:35]} 14. Qd4 {[%emt 0:05:40]} e5 {[%emt 0:02:39]} 15. Bxf6 {[%emt 0:01:10]} Qxf6 {[%emt 0:00:09]} 16. Qd2 {[%emt 0:01:29]} Rad8 {[%emt 0:07:27]} 17. Ng5 {[%emt 0:08:27]} Bxg2 {[%emt 0:05:06]} 18. Kxg2 {[%emt 0:00:04]} h6 {[%emt 0:01:41]} 19. Ne4 {[%emt 0:09:17]} Qe6 {[%emt 0:00:22]} 20. Qd5 {[%emt 0:02:36]} Qg4 {[%emt 0:04:50]} 21. e3 {[%emt 0:10:53]} Ne7 {[%emt 0:10:21]} 22. h3 {[%emt 0:03:26]} Qg6 {[%emt 0:04:09]} 23. Qb7 {[%emt 0:00:58]} d5 {[%emt 0:08:18]} 24. Nc3 {[%emt 0:02:35]} Qe6 {[%emt 0:02:43]} 25. cxd5 {[%emt 0:06:28]} Nxd5 {[%emt 0:00:42]} 26. Qxa7 {[%emt 0:00:21]} Nxc3 {[%emt 0:02:09]} 27. bxc3 {[%emt 0:00:06]} Qc6+ {[%emt 0:00:08]} 28. Kg1 {[%emt 0:00:46]} Rd7 {[%emt 0:00:49]} 29. Qa6 {[%emt 0:00:00]} Ra8 {[%emt 0:00:14]} 30. Qe2 {[%emt 0:00:01]} Qxc3 {[%emt 0:00:31]} 31. Qb5 {[%emt 0:01:18]} Rda7 {[%emt 0:04:49]} 32. Qxb6 {[%emt 0:03:18]} Rxa3 {[%emt 0:00:31]} 1/2-1/2